bitfinex/quotes_ETHUSD_20250827
["timestamp","ask_amount","ask_price","bid_price","bid_amount"]
[1756314822105,0.764,4630.0,4629.9,3.701]
[1756314822594,0.4625,4630.4,4630.1,2.15973873]
[1756314822897,0.3015,4630.2,4630.1,3.701]
[1756314823090,0.764,4630.2,4630.1,3.701]
[1756314823676,0.764,4630.2,4629.8,0.021]
[1756314823872,0.4625,4630.1,4629.9,3.701]
[1756314824074,0.764,4630.0,4629.9,3.701]
[1756314826601,0.764,4630.0,4629.8,0.021]
[1756314826802,0.3015,4630.0,4629.8,0.021]
[1756314826998,0.3015,4630.0,4629.8,3.721]
[1756314827497,0.4708,4629.9,4629.8,3.721]
[1756314827701,0.7668,4629.9,4629.8,3.721]
[1756314827870,0.7668,4629.9,4629.8,0.021]
[1756314829717,3.21932757,4629.9,4629.8,0.021]
[1756314829921,2.92667386,4629.9,4629.8,0.021]
[1756314830082,2.94823038,4629.9,4629.8,0.021]
[1756314830592,2.92667386,4629.9,4629.8,0.021]
[1756314830780,2.94823038,4629.9,4629.8,0.021]
[1756314832001,3.49284887,4629.9,4629.8,0.021]
[1756314832202,3.47129235,4629.9,4629.8,0.021]
[1756314832584,1.31141849,4629.9,4629.8,0.021]
[1756314832783,0.7668,4629.9,4629.8,0.021]
[1756314833218,2.92667386,4629.9,4629.8,0.021]
[1756314833819,0.33815523,4630.1,4629.8,0.021]
[1756314834019,0.33815523,4630.1,4629.9,2.15983628]
[1756314834328,0.33815523,4630.1,4630.0,2.46732721]
[1756314834480,0.33815523,4630.1,4630.0,2.93215506]
[1756314835335,2.16146713,4630.8,4630.0,0.77232785]
[1756314835336,2.15950996,4630.7,4630.0,0.77232785]
[1756314835528,2.15950996,4630.7,4630.0,2.46732412]
[1756314835722,2.15950996,4630.7,4630.1,3.699]
[1756314835933,0.002,4630.8,4630.1,3.699]
[1756314835934,2.15955409,4630.6,4630.1,3.699]
[1756314836452,0.4708,4630.6,4630.1,3.699]
[1756314837614,0.4708,4630.6,4630.1,5.85876355]
[1756314837943,0.4708,4630.6,4630.1,3.699]
[1756314838139,0.002,4630.8,4630.2,2.1596877]
[1756314838527,0.4708,4630.7,4630.1,3.699]
[1756314839250,0.296,4630.2,4629.8,2.18091856]
[1756314839421,0.296,4630.2,4629.9,5.85886988]
[1756314839620,2.15953521,4630.7,4630.1,0.3075]
[1756314839826,0.4728,4630.8,4630.1,2.46727513]
[1756314840148,0.4728,4630.8,4630.1,0.3075]
[1756314840445,0.002,4630.8,4630.1,0.3075]
[1756314840742,0.002,4630.8,4630.3,2.159647]
[1756314840955,0.002,4630.8,4630.2,0.40065]
[1756314841546,0.002,4630.8,4630.7,0.3075]
[1756314841959,0.002,4630.8,4630.3,2.15968719]
[1756314841960,0.002,4630.8,4630.1,2.15978056]
[1756314842163,0.002,4630.8,4630.0,2.1597852]
[1756314842327,0.002,4630.8,4630.7,2.46700072]
[1756314842672,0.002,4630.8,4630.7,2.48859572]
[1756314842970,0.002,4630.8,4630.7,2.84059572]
[1756314843517,0.002,4630.8,4630.7,3.61100072]
[1756314843724,0.002,4630.8,4630.7,6.63259572]
[1756314844038,0.002,4630.8,4630.7,7.86001696]
[1756314844225,1e-08,4630.8,4630.7,7.86001696]
[1756314846858,1e-08,4630.8,4630.7,11.55801696]
[1756314847048,1e-08,4630.8,4630.7,7.50801696]
[1756314847235,1e-08,4630.8,4630.7,11.55701696]
[1756314847636,1e-08,4630.8,4630.7,7.50801696]
[1756314847832,1e-08,4630.8,4630.7,7.41301696]
[1756314848032,0.76680001,4630.8,4630.7,3.697]
[1756314848724,2.92625703,4630.8,4630.2,3.697]
[1756314848927,0.49235652,4630.7,4630.2,3.697]
[1756314849155,0.296,4630.3,4630.2,3.697]
[1756314849462,0.7668,4630.3,4630.2,3.697]
[1756314850805,0.7668,4630.3,4629.8,0.021]
[1756314851066,1.05944331,4630.3,4629.8,0.021]
[1756314851271,0.02155652,4630.2,4629.8,0.021]
[1756314851574,0.296,4629.9,4629.8,0.021]
[1756314851781,0.7668,4629.9,4629.8,0.021]
[1756314852838,0.4708,4630.6,4629.8,0.021]
[1756314853037,0.4708,4630.6,4629.8,0.3285]
[1756314853233,0.296,4629.9,4629.8,0.021]
[1756314853640,2.92667386,4629.9,4629.8,0.021]
[1756314855970,2.15979736,4630.1,4629.8,0.021]
[1756314856137,2.15984547,4630.0,4629.8,0.021]
[1756314856343,2.15973392,4630.2,4629.8,0.021]
[1756314856677,0.2891,4629.9,4629.8,0.021]
[1756314857179,2.63200208,4630.1,4629.8,0.021]
[1756314857547,0.4722,4630.1,4629.8,0.021]
[1756314857748,2.15973116,4630.3,4629.8,0.021]
[1756314857944,2.15968727,4630.3,4629.8,0.021]
[1756314858275,0.2891,4629.9,4629.8,0.021]
[1756314858663,0.7613,4629.9,4629.8,0.021]
[1756314859076,1e-08,4630.8,4629.8,0.3061]
[1756314859277,2.15960904,4630.5,4629.8,2.46599401]
[1756314859478,5.85547376,4630.8,4629.8,0.021]
[1756314859479,3.69600001,4630.8,4629.8,0.021]
[1756314859690,0.2891,4629.9,4629.8,0.021]
[1756314860473,0.4722,4630.4,4629.8,0.3061]
[1756314860963,2.63185042,4630.4,4629.8,0.3061]
[1756314861162,2.63185042,4630.4,4629.8,0.021]
[1756314862689,2.1596877,4630.3,4629.8,0.021]
[1756314862854,0.2891,4629.9,4629.8,0.021]
[1756314863052,2.44897386,4629.9,4629.8,0.021]
[1756314863269,3.45082675,4629.9,4629.8,0.021]
[1756314864953,0.7613,4629.9,4629.8,0.021]
[1756314865288,0.2891,4629.9,4629.8,0.021]
[1756314865657,0.7613,4629.9,4629.8,0.021]
[1756314866455,0.4722,4630.3,4629.8,0.021]
[1756314866858,0.4722,4630.2,4629.8,0.021]
[1756314867487,0.4722,4630.1,4629.8,0.021]
[1756314867888,0.4722,4630.1,4629.9,2.15985483]
[1756314868187,0.4722,4630.4,4629.8,2.18090742]
[1756314868908,2.83165561,4630.7,4629.8,0.021]
[1756314869185,0.02155652,4630.6,4629.8,0.021]
[1756314869351,0.4722,4630.5,4629.8,0.021]
[1756314869552,0.4722,4630.5,4629.8,2.18091238]
[1756314869868,0.4722,4630.5,4629.8,0.021]
[1756314870190,0.33811129,4630.5,4630.0,2.15981682]
[1756314870377,0.33811129,4630.5,4630.0,2.5939927]
[1756314870976,0.2891,4630.1,4629.8,0.021]
[1756314871392,0.7613,4630.1,4629.8,0.021]
[1756314871588,0.7613,4630.1,4629.8,2.18091717]
[1756314871981,0.7613,4630.1,4629.8,0.021]
[1756314872488,0.4722,4630.0,4629.8,0.021]
[1756314872907,2.15974004,4630.2,4629.8,0.021]
[1756314872908,0.7613,4629.9,4629.8,0.021]
[1756314873607,2.94273038,4629.9,4629.8,0.021]
[1756314873810,3.23484341,4629.9,4629.8,0.021]
[1756314875109,2.15992051,4629.8,4629.7,0.001]
[1756314875411,8.85392051,4629.8,4629.7,0.001]
[1756314875597,9.14302051,4629.8,4629.7,0.001]
[1756314875803,10.59290396,4629.8,4629.7,0.001]
[1756314881017,6.89890396,4629.8,4629.7,0.001]
[1756314881220,10.59290396,4629.8,4629.7,0.001]
[1756314883206,11.47154096,4629.8,4629.7,1e-08]
[1756314888017,5.15996716,4629.7,4629.6,1e-08]
[1756314888194,5.45208019,4629.7,4629.6,1e-08]
[1756314888520,6.21078019,4629.7,4629.6,1e-08]
[1756314888724,6.29742419,4629.7,4629.6,1e-08]
[1756314889226,5.1601538,4629.3,4629.2,1e-08]
[1756314889522,8.8531538,4629.3,4629.2,1e-08]
[1756314889727,9.6118538,4629.3,4629.2,1e-08]
[1756314890525,9.6985038,4629.3,4629.2,1e-08]
[1756314891908,9.6485038,4629.3,4629.2,1e-08]
[1756314892109,9.94061683,4629.3,4629.2,1e-08]
[1756314892514,2.16024713,4629.1,4629.0,1e-08]
[1756314892721,2.16048049,4628.6,4627.8,0.02]
[1756314893052,2.44900727,4627.9,4627.8,0.02]
[1756314893200,10.14124724,4627.9,4627.8,0.02]
[1756314893402,10.59019072,4627.9,4627.8,0.02]
[1756314895146,10.59019072,4627.9,4626.0,0.352]
[1756314895147,2.16127428,4626.9,4626.0,0.352]
[1756314895331,3.693,4627.8,4626.9,0.352]
[1756314895526,3.71455652,4627.7,4626.9,0.352]
[1756314895824,2.16104624,4627.4,4626.9,0.352]
[1756314896006,5.85404624,4627.4,4626.9,0.352]
[1756314896207,3.693,4627.4,4627.3,0.3095]
[1756314896807,5.85404075,4627.4,4627.3,0.3095]
[1756314897226,3.693,4627.4,4627.3,0.6615]
[1756314897606,5.85404075,4627.4,4627.3,0.6615]
[1756314897935,5.85404075,4627.4,4627.3,0.3095]
[1756314898540,3.693,4627.4,4627.3,0.3095]
[1756314899114,5.85404075,4627.4,4627.3,0.3095]
[1756314900115,3.693,4627.4,4627.3,0.3095]
[1756314900312,0.33834009,4627.5,4627.3,0.6615]
[1756314900518,0.33834009,4627.5,4627.4,0.352]
[1756314900718,4.03134009,4627.5,4627.4,0.352]
[1756314901055,4.03134009,4627.5,4627.4,0.6615]
[1756314901857,0.33834009,4627.5,4627.4,0.6615]
[1756314902154,4.03134009,4627.5,4627.4,0.3095]
[1756314902336,4.03134009,4627.5,4627.4,0.6615]
[1756314903153,2.16108745,4627.3,4626.8,0.02]
[1756314903342,2.16127428,4626.9,4626.8,0.02]
[1756314903538,9.1640308,4626.9,4626.8,0.02]
[1756314903740,9.61297428,4626.9,4626.8,0.02]
[1756314903917,10.47963675,4626.9,4626.8,0.02]
[1756314904119,10.81805016,4626.9,4626.8,0.02]
[1756314904434,10.47963675,4626.9,4626.8,0.02]
[1756314904637,10.81807213,4626.9,4626.8,0.02]
[1756314904816,10.34757213,4626.9,4626.8,0.02]
[1756314905017,9.48090966,4626.9,4626.8,0.02]
[1756314905626,9.14247428,4626.9,4626.8,0.02]
[1756314905822,5.85427428,4626.9,4626.8,0.3295]
[1756314906146,2.16108405,4627.4,4626.8,0.3295]
[1756314906327,3.0,4627.2,4626.8,0.3295]
[1756314906649,2.16127428,4626.9,4626.8,0.02]
[1756314906949,5.85427428,4626.9,4626.8,0.02]
[1756314907452,3.693,4626.9,4626.8,0.3295]
[1756314907630,5.85427428,4626.9,4626.8,0.3295]
[1756314907828,3.693,4626.9,4626.8,0.3295]
[1756314908854,4.03136929,4626.9,4626.8,0.6815]
[1756314909257,0.33836929,4626.9,4626.8,2.84282099]
[1756314909420,3.693,4627.4,4626.9,2.16126034]
[1756314909621,3.693,4627.4,4627.3,0.3095]
[1756314910075,0.3383346,4627.6,4627.3,0.6615]
[1756314910283,0.3383346,4627.6,4627.4,0.352]
[1756314910567,4.0303346,4627.6,4627.3,0.3095]
[1756314910738,4.05189112,4627.6,4627.3,0.3095]
[1756314911634,4.0303346,4627.6,4627.3,0.3095]
[1756314911967,0.02155652,4627.5,4627.3,0.3095]
[1756314914161,0.3383346,4627.6,4627.3,2.4705868]
[1756314914358,0.3383346,4627.6,4627.4,0.3736104]
[1756314914556,4.0303346,4627.6,4627.5,0.6615]
[1756314914736,4.0303346,4627.6,4627.5,0.3095]
[1756314915369,3.692,4627.6,4627.5,0.3095]
[1756314917137,4.662,4628.3,4627.5,0.3095]
[1756314917337,6.82262568,4628.3,4627.5,0.3095]
[1756314917539,3.692,4628.2,4627.5,0.3095]
[1756314917747,3.71355652,4628.2,4627.5,0.3095]
[1756314917954,2.16085579,4627.8,4627.5,0.3095]
[1756314918155,3.71355652,4627.7,4627.5,0.3095]
[1756314919180,3.71355652,4627.7,4626.8,0.02]
[1756314919181,2.16118618,4627.1,4626.8,0.02]
[1756314919479,2.16127428,4626.9,4626.8,0.02]
[1756314919656,2.4771308,4626.9,4626.8,0.02]
[1756314919842,2.9086308,4626.9,4626.8,0.02]
[1756314920177,3.89554235,4626.9,4626.8,0.02]
[1756314920875,1.0641881,4626.9,4626.8,0.02]
[1756314921444,3.22546238,4626.9,4626.8,0.02]
[1756314921772,2.79396238,4626.9,4626.8,0.02]
[1756314921961,0.3383881,4626.9,4626.8,0.322]
[1756314922149,0.3383881,4626.9,4626.8,0.674]
[1756314922355,3.691,4627.3,4626.8,0.674]
[1756314922564,3.691,4627.3,4626.9,0.001]
[1756314922964,0.2943,4627.0,4626.9,0.001]
[1756314923154,2.47708409,4627.0,4626.9,0.001]
[1756314923349,7.0441527,4627.0,4626.9,0.001]
[1756314923549,7.45409618,4627.0,4626.9,0.001]
[1756314924143,10.79248513,4627.0,4626.9,0.001]
[1756314924580,10.45409618,4627.0,4626.9,0.001]
[1756314926354,7.86136861,4627.0,4626.9,0.001]
[1756314926586,9.14652757,4627.0,4626.9,0.001]
[1756314927097,9.34800458,4627.0,4626.9,0.001]
[1756314927452,9.77950458,4627.0,4626.9,0.001]
[1756314928778,5.36270458,4627.0,4626.9,0.001]
[1756314929090,9.34800458,4627.0,4626.9,0.001]
[1756314929663,9.05370458,4627.0,4626.9,0.303]
[1756314930676,5.36270458,4627.0,4626.9,0.001]
[1756314930994,9.19060522,4627.0,4626.9,0.001]
[1756314931301,9.39213128,4627.0,4626.9,0.303]
[1756314931462,9.39213128,4627.0,4626.9,0.001]
[1756314931784,10.11793843,4627.0,4626.9,0.001]
[1756314932982,5.95327428,4626.9,4626.8,1e-08]
[1756314933185,6.15480749,4626.9,4626.8,1e-08]
[1756314933381,6.44910749,4626.9,4626.8,1e-08]
[1756314933683,6.88060749,4626.9,4626.8,1e-08]
[1756314933882,6.08860749,4626.9,4626.8,1e-08]
[1756314934180,9.77960749,4626.9,4626.8,1e-08]
[1756314935165,9.86629649,4626.9,4626.8,1e-08]
[1756314935390,5.74379649,4626.9,4626.8,1e-08]
[1756314935703,9.86629649,4626.9,4626.8,1e-08]
[1756314935915,3.17529649,4626.9,4626.8,1e-08]
[1756314936064,6.07536401,4626.9,4626.8,0.30200001]
[1756314936390,3.89253321,4626.9,4626.8,0.30200001]
[1756314936584,9.05380749,4626.9,4626.8,0.30200001]
[1756314937885,3.89253321,4626.9,4626.8,0.30200001]
[1756314938561,6.07536401,4626.9,4626.8,0.30200001]
[1756314938889,6.05380749,4626.9,4626.8,1e-08]
[1756314939388,7.21275687,4626.9,4626.8,1e-08]
[1756314939562,10.64425687,4626.9,4626.8,0.00100001]
[1756314939756,10.64625687,4626.9,4626.8,0.00100001]
[1756314940061,11.07137741,4626.9,4626.8,0.00100001]
[1756314941154,10.8698442,4626.9,4626.8,0.00100001]
[1756314941360,11.07140588,4626.9,4626.8,0.00100001]
[1756314942077,2.16146114,4626.5,4626.4,1e-08]
[1756314942273,2.16146114,4626.5,4624.8,0.02]
[1756314942274,2.16181319,4625.8,4624.8,0.02]
[1756314942570,2.45650891,4624.9,4624.8,0.02]
[1756314942770,11.03262711,4624.9,4624.8,0.02]
[1756314943097,12.56627279,4624.9,4624.8,0.02]
[1756314943596,12.99877279,4624.9,4624.8,0.02]
[1756314943802,12.64577279,4624.9,4624.8,0.02]
[1756314945400,12.30721997,4624.9,4624.8,0.02]
[1756314945576,10.71777059,4624.9,4624.8,0.02]
[1756314945980,11.01207059,4624.9,4624.8,0.02]
[1756314946300,11.44357059,4624.9,4624.8,0.02]
[1756314947777,7.32107059,4624.9,4624.8,0.02]
[1756314947985,11.44917059,4624.9,4624.8,0.02]
[1756314948394,7.02677059,4624.9,4624.8,0.02]
[1756314948582,11.03307059,4624.9,4624.8,0.02]
[1756314948786,11.80871449,4624.9,4624.8,0.02]
[1756314950407,5.20310558,4624.9,4624.8,0.3172]
[1756314950605,8.89410558,4624.9,4624.8,0.3172]
[1756314950912,11.05631449,4624.9,4624.8,0.3172]
[1756314951087,11.05631449,4624.9,4624.8,0.02]
[1756314951607,11.80830701,4624.9,4624.8,0.02]
[1756314952603,11.05590701,4624.9,4624.8,0.02]
[1756314952807,11.80830701,4624.9,4624.8,0.02]
[1756314953106,11.05590701,4624.9,4624.8,0.02]
[1756314953479,11.80830701,4624.9,4624.8,0.02]
[1756314955009,7.36490701,4624.9,4624.8,0.02]
[1756314955308,11.05590701,4624.9,4624.8,0.3172]
[1756314955609,11.37120701,4624.9,4624.8,0.02]
[1756314955909,11.80830701,4624.9,4624.8,0.02]
[1756314957691,11.46976311,4624.9,4624.8,0.02]
[1756314958714,4.8641542,4624.9,4624.8,0.02]
[1756314958911,11.46976311,4624.9,4624.8,0.02]
[1756314959100,11.46976311,4624.9,4624.8,0.021]
[1756314960512,8.89371256,4624.9,4624.8,0.3182]
[1756314960814,11.05592147,4624.9,4624.8,0.3182]
[1756314961015,11.80832147,4624.9,4624.8,0.021]
[1756314961318,11.80876954,4624.9,4624.8,0.021]
[1756314961707,5.16225566,4624.8,4624.3,0.001]
[1756314961933,2.16244269,4624.4,4624.3,0.001]
[1756314962218,6.39181718,4624.4,4624.3,0.001]
[1756314962419,6.80736066,4624.4,4624.3,0.001]
[1756314962720,7.14598623,4624.4,4624.3,0.001]
[1756314964817,7.14598623,4624.4,4624.3,0.2982]
[1756314964818,0.54014354,4624.4,4624.3,0.2982]
[1756314964984,4.23114354,4624.4,4624.3,0.2982]
[1756314965321,3.89251797,4624.4,4624.3,0.2982]
[1756314965520,5.85344269,4624.4,4624.3,0.2982]
[1756314965719,5.85344269,4624.4,4624.3,0.001]
[1756314966016,7.6089173,4624.4,4624.3,0.001]
[1756314966220,6.8565173,4624.4,4624.3,0.001]
[1756314966817,9.8565173,4624.4,4624.3,0.001]
[1756314966996,9.8565173,4624.4,4624.3,0.2982]
[1756314967193,9.05493291,4624.4,4624.3,0.2982]
[1756314967915,9.37023291,4624.4,4624.3,0.001]
[1756314968114,9.80733291,4624.4,4624.3,0.001]
[1756314968894,5.36393291,4624.4,4624.3,0.001]
[1756314969094,5.36393291,4624.4,4624.3,0.2982]
[1756314969095,9.05493291,4624.4,4624.3,0.2982]
[1756314969617,9.37023291,4624.4,4624.3,0.001]
[1756314969822,9.80733291,4624.4,4624.3,0.001]
[1756314970329,16.95733291,4624.4,4624.3,0.001]
[1756314971026,16.95775051,4624.4,4624.3,0.001]
[1756314971330,16.95775051,4624.4,4624.3,0.2982]
[1756314971331,16.54396263,4624.4,4624.3,0.2982]
[1756314971692,12.85296263,4624.4,4624.3,0.001]
[1756314971926,16.54296263,4624.4,4624.3,0.001]
[1756314972106,17.29536263,4624.4,4624.3,0.001]
[1756314972500,16.85826263,4624.4,4624.3,0.001]
[1756314972695,17.29536263,4624.4,4624.3,0.001]
[1756314973112,12.85296263,4624.4,4624.3,0.2982]
[1756314973311,16.54296263,4624.4,4624.3,0.001]
[1756314973700,17.29536263,4624.4,4624.3,0.001]
[1756314974507,17.29578914,4624.4,4624.3,0.001]
[1756314975121,13.16868914,4624.4,4624.3,0.001]
[1756314975324,12.85338914,4624.4,4624.3,0.001]
[1756314975632,16.54338914,4624.4,4624.3,0.2982]
[1756314975852,16.85868914,4624.4,4624.3,0.001]
[1756314976135,17.29578914,4624.4,4624.3,0.001]
[1756314976306,13.60578914,4624.4,4624.3,0.001]
[1756314976662,17.29578914,4624.4,4624.3,0.001]
[1756314977704,17.29593265,4624.4,4624.3,0.001]
[1756314980434,12.85353265,4624.4,4624.3,0.3136]
[1756314980634,13.54353265,4624.4,4624.3,0.3136]
[1756314981035,7.69108996,4624.4,4624.3,0.6656]
[1756314981243,4.23108996,4624.4,4624.3,0.94842278]
[1756314981455,0.54102976,4624.4,4624.3,0.94842278]
[1756314981603,3.69,4624.5,4624.3,0.94842278]
[1756314981809,3.69,4624.5,4624.4,0.352]
[1756314982040,3.69,4624.6,4624.4,0.6646]
[1756314982342,3.692,4624.8,4624.5,0.352]
[1756314982537,0.20231183,4624.7,4624.6,0.28280534]
[1756314982709,2.38617097,4624.7,4624.3,0.001]
[1756314983044,5.16239593,4624.5,4624.3,0.001]
[1756314983334,6.05475452,4624.4,4624.3,0.001]
[1756314983536,2.36475452,4624.4,4624.3,0.001]
[1756314983740,6.05475452,4624.4,4624.3,0.3136]
[1756314984138,6.39332095,4624.4,4624.3,0.3136]
[1756314984456,6.39332095,4624.4,4624.3,0.6656]
[1756314984457,0.54087826,4624.4,4624.3,0.6656]
[1756314984757,0.20231183,4624.4,4624.3,3.90290171]
[1756314984952,0.002,4624.8,4624.3,1.74041226]
[1756314985133,0.002,4624.8,4624.4,0.352]
[1756314985343,0.002,4624.8,4624.7,2.16230241]
[1756314985544,0.002,4624.8,4624.7,0.78026855]
[1756314985744,0.002,4624.8,4624.7,0.3126]
[1756314986053,3.692,4624.8,4624.7,0.3126]
[1756314986251,0.002,4624.8,4624.7,0.3126]
[1756314986453,3.692,4624.8,4624.7,0.3126]
[1756314986655,0.002,4624.8,4624.7,0.6646]
[1756314986955,0.002,4624.8,4624.7,0.3126]
[1756314987156,2.16425566,4624.8,4624.7,0.3126]
[1756314987854,0.002,4624.8,4624.7,0.3126]
[1756314988173,3.692,4624.8,4624.7,0.6646]
[1756314988404,3.692,4624.8,4624.7,0.3126]
[1756314988901,0.002,4624.8,4624.7,0.6646]
[1756314989022,0.002,4624.8,4624.7,0.94730273]
[1756314989222,0.002,4624.8,4624.7,0.3126]
[1756314989966,0.002,4624.8,4624.7,0.6646]
[1756314990176,0.002,4624.8,4624.7,0.3126]
[1756314991165,2.16425566,4624.8,4624.7,0.3126]
[1756314991475,2.16244269,4624.4,4624.3,0.001]
[1756314991670,5.85144269,4624.4,4624.3,0.001]
[1756314991871,2.16244269,4624.4,4624.3,0.3136]
[1756314992035,5.85144269,4624.4,4624.3,0.3136]
[1756314992530,2.16244269,4624.4,4624.3,0.3136]
[1756314992730,2.91674269,4624.4,4624.3,0.001]
[1756314992957,0.33854423,4624.5,4624.3,0.3136]
[1756314993362,0.002,4624.8,4624.4,0.352]
[1756314993567,0.002,4624.8,4624.5,2.16239593]
[1756314993850,0.002,4624.8,4624.7,2.47490241]
[1756314994365,0.002,4624.8,4624.7,0.6646]
[1756314994947,0.002,4624.8,4624.7,0.3126]
[1756314995343,3.691,4624.8,4624.7,0.3126]
[1756314995964,0.002,4624.8,4624.7,0.3126]
[1756314996124,3.691,4624.8,4624.7,0.3126]
[1756314996829,3.691,4624.8,4624.3,0.001]
[1756314997178,6.29706608,4624.8,4624.3,0.001]
[1756314997389,2.16243055,4624.5,4624.3,0.001]
[1756314997560,5.85144269,4624.4,4624.3,0.001]
[1756314997728,3.689,4624.4,4624.3,0.001]
[1756314998367,0.002,4624.8,4624.3,0.3136]
[1756314998567,3.689,4624.7,4624.3,0.3136]
[1756314998782,3.689,4624.7,4624.3,0.56121816]
[1756314999340,3.689,4624.7,4624.3,0.3136]
[1756314999569,0.3105,4624.4,4624.3,0.001]
[1756315000094,2.16244269,4624.4,4624.3,0.001]
[1756315000579,6.140492,4624.4,4624.3,0.001]
[1756315000764,6.140492,4624.4,4623.8,0.021]
[1756315000765,2.16248945,4624.3,4623.8,0.021]
[1756315001078,2.16262975,4624.0,4623.8,0.021]
[1756315001270,9.38592583,4623.9,4623.8,0.021]
[1756315001484,9.80816931,4623.9,4623.8,0.021]
[1756315001654,9.80816931,4623.9,4623.8,1e-08]
[1756315001986,10.41998768,4623.9,4623.8,1e-08]
[1756315002145,6.73098768,4623.9,4623.8,1e-08]
[1756315002344,10.41998768,4623.9,4623.8,1e-08]
[1756315002583,10.41993993,4623.9,4623.8,1e-08]
[1756315002791,6.52884876,4623.9,4623.8,1e-08]
[1756315003097,10.42293608,4623.9,4623.8,1e-08]
[1756315004290,10.42393608,4623.9,4623.8,1e-08]
[1756315004495,6.73093608,4623.9,4623.8,1e-08]
[1756315004666,10.42293608,4623.9,4623.8,1e-08]
[1756315006093,6.73093608,4623.9,4623.8,1e-08]
[1756315006380,10.42393608,4623.9,4623.8,1e-08]
[1756315007269,6.73093608,4623.9,4623.8,1e-08]
[1756315007465,10.42293608,4623.9,4623.8,1e-08]
[1756315007855,6.73093608,4623.9,4623.8,1e-08]
[1756315008061,10.0842761,4623.9,4623.8,1e-08]
[1756315008780,9.88218878,4623.9,4623.8,1e-08]
[1756315008954,10.08380129,4623.9,4623.8,1e-08]
[1756315009357,10.08280129,4623.9,4623.8,1e-08]
[1756315009553,10.08180129,4623.9,4623.8,1e-08]
[1756315010072,6.39180129,4623.9,4623.8,1e-08]
[1756315010487,10.08480129,4623.9,4623.8,1e-08]
[1756315010854,5.36428903,4623.9,4623.8,0.28770001]
[1756315011052,8.85467652,4623.9,4623.8,0.28770001]
[1756315011280,5.16267652,4623.9,4623.8,0.28770001]
[1756315011484,8.85467652,4623.9,4623.8,0.28770001]
[1756315011675,8.85467652,4623.9,4623.8,1e-08]
[1756315012357,9.63707652,4623.9,4623.8,1e-08]
[1756315012551,9.83860667,4623.9,4623.8,1e-08]
[1756315012752,9.83858995,4623.9,4623.8,1e-08]
[1756315013165,16.98858995,4623.9,4623.8,1e-08]
[1756315016065,16.99058995,4623.9,4623.8,1e-08]
[1756315016269,13.29858995,4623.9,4623.8,1e-08]
[1756315019891,13.63725262,4623.9,4623.8,1e-08]
[1756315021374,20.79858314,4623.9,4623.8,1e-08]
[1756315021561,12.85504864,4623.9,4623.8,1e-08]
[1756315022086,13.43573919,4623.9,4623.8,1e-08]
[1756315022275,13.63745152,4623.9,4623.8,1e-08]
[1756315023698,14.42945152,4623.9,4623.8,1e-08]
[1756315024477,14.78145152,4623.9,4623.8,1e-08]
[1756315024676,13.98945152,4623.9,4623.8,1e-08]
[1756315024884,13.63746653,4623.9,4623.8,1e-08]
[1756315025819,12.85506653,4623.9,4623.8,1e-08]
[1756315026297,13.63746653,4623.9,4623.8,1e-08]
[1756315026504,13.17006653,4623.9,4623.8,1e-08]
[1756315027818,13.29880386,4623.9,4623.8,1e-08]
[1756315028233,14.09121647,4623.9,4623.8,1e-08]
[1756315029613,14.42989506,4623.9,4623.8,1e-08]
[1756315030900,10.16133052,4622.9,4622.8,0.02]
[1756315031239,17.51347047,4622.9,4622.8,0.02]
[1756315031390,19.67661481,4622.9,4622.8,0.02]
[1756315031591,20.01559013,4622.9,4622.8,0.02]
[1756315031813,20.01560162,4622.9,4622.8,0.02]
[1756315032215,20.01559943,4622.9,4622.8,0.02]
[1756315032734,20.1227045,4622.9,4622.8,0.02]
[1756315033534,20.01559943,4622.9,4622.8,0.02]
[1756315034237,12.85426891,4622.9,4622.8,0.3077]
[1756315034405,18.20826891,4622.9,4622.8,0.3077]
[1756315034935,18.99066891,4622.9,4622.8,0.02]
[1756315035295,14.51826891,4622.9,4622.8,0.3077]
[1756315035517,18.20826891,4622.9,4622.8,0.3077]
[1756315035719,14.51826891,4622.9,4622.8,0.3077]
[1756315035932,18.20826891,4622.9,4622.8,0.3087]
[1756315038223,17.86955715,4622.9,4622.8,0.3087]
[1756315038544,14.17955715,4622.9,4622.8,0.3087]
[1756315038697,17.86955715,4622.9,4622.8,0.3087]
[1756315039836,18.2082445,4622.9,4622.8,0.3087]
[1756315041504,18.2082445,4622.9,4622.8,0.3242]
[1756315041946,18.20824007,4622.9,4622.8,0.3242]
[1756315042556,14.51822619,4622.9,4622.8,0.3242]
[1756315042861,15.20822619,4622.9,4622.8,0.3242]
[1756315043558,11.51822619,4622.9,4622.8,0.3242]
[1756315043939,15.20822619,4622.9,4622.8,0.3242]
[1756315046361,11.51822619,4622.9,4622.8,0.3242]
[1756315046567,15.20822619,4622.9,4622.8,0.3242]
[1756315051957,7.69108185,4622.9,4622.8,0.3242]
[1756315052162,11.38108185,4622.9,4622.8,0.6762]
[1756315052340,11.17868735,4622.9,4622.8,0.6762]
[1756315052870,7.15,4622.9,4622.8,0.96014846]
[1756315053171,3.689,4623.2,4622.8,0.6762]
[1756315053361,3.689,4623.2,4622.9,0.352]
[1756315053565,3.689,4623.2,4623.1,0.3032]
[1756315053745,3.689,4623.2,4623.1,0.6552]
[1756315054077,3.689,4623.2,4623.1,0.3032]
[1756315054768,3.689,4623.2,4623.1,0.6552]
[1756315054934,3.689,4623.2,4623.1,0.93913698]
[1756315055534,1.664,4623.6,4623.1,0.6552]
[1756315055738,3.689,4623.5,4623.2,0.352]
[1756315055940,0.002,4623.8,4623.2,0.352]